bitfinex-derivatives/quotes_BNBF0:USTF0_20250603
["timestamp","ask_amount","ask_price","bid_price","bid_amount"]
[1748980907895,1.00449164,664.75,664.27,0.30108239]
[1748980908095,1.00449164,664.74,664.27,0.30108239]
[1748980908291,1.00449164,664.73,664.27,0.30108239]
[1748980908496,1.00449164,664.72,664.27,0.77746159]
[1748980908794,1.00449164,664.71,664.27,0.77746159]
[1748980908995,1.00449164,664.7,664.27,0.77746159]
[1748980909196,1.00545979,664.69,664.27,0.30108239]
[1748980909391,1.12212661,664.92,664.27,0.30108239]
[1748980909596,1.00548016,664.91,664.27,0.30108239]
[1748980909791,1.00548016,664.9,664.27,0.30108239]
[1748980909995,1.00548016,664.89,664.27,0.30108239]
[1748980910197,1.00548016,664.88,664.27,0.30108239]
[1748980910399,1.00548016,664.87,664.27,0.30108239]
[1748980910693,1.00548016,664.86,664.27,0.30108239]
[1748980910896,1.00548016,664.85,664.27,0.30108239]
[1748980911090,1.49834309,665.19,664.27,0.30108239]
[1748980911091,1.00548016,664.84,664.27,0.30108239]
[1748980911294,1.00548016,664.83,664.27,0.30108239]
[1748980911497,1.12212661,665.05,664.27,0.30108239]
[1748980911498,1.00548016,664.82,664.27,0.30108239]
[1748980911694,1.49834309,665.2,664.27,0.30108239]
[1748980911893,1.12291856,665.05,664.27,0.30108239]
[1748980912093,1.00642552,665.04,664.27,0.30108239]
[1748980912294,1.00642552,665.03,664.27,0.30108239]
[1748980912498,1.00642552,665.02,664.27,0.30108239]
[1748980912698,1.00642552,665.01,664.27,0.30108239]
[1748980912999,1.00642552,665.0,664.27,0.30108239]
[1748980913195,1.00651504,664.99,664.27,0.30108239]
[1748980913396,1.00651504,664.98,664.27,0.30108239]
[1748980913698,1.00651504,664.97,664.27,0.30108239]
[1748980913899,1.00651504,664.96,664.27,0.30108239]
[1748980914098,1.00651504,664.95,664.27,0.30108239]
[1748980914301,1.00651504,664.94,664.27,0.30108239]
[1748980914498,1.00651504,664.93,664.27,0.30108239]
[1748980914801,1.00651504,664.92,664.27,0.30108239]
[1748980914995,1.00651504,664.91,664.27,0.30108239]
[1748980915202,1.00651504,664.9,664.27,0.30108239]
[1748980915396,1.00651504,664.89,664.27,0.30108239]
[1748980915598,1.00710176,664.88,664.27,0.30108239]
[1748980915803,1.00710176,664.87,664.27,0.30108239]
[1748980916000,1.00710176,664.86,664.27,0.30108239]
[1748980916200,1.00710176,664.85,664.27,0.30108239]
[1748980916401,1.00710176,664.84,664.27,0.30108239]
[1748980916601,1.12270554,665.07,664.27,0.30108239]
[1748980916797,1.00703397,665.06,664.27,0.30108239]
[1748980917000,1.00703397,665.05,664.27,0.30108239]
[1748980917200,1.00703397,665.04,664.27,0.30108239]
[1748980917401,1.00703397,665.03,664.27,0.30108239]
[1748980917701,1.00703397,665.02,664.27,0.30108239]
[1748980917897,1.00703397,665.01,664.27,0.30108239]
[1748980918101,1.00703397,665.0,664.27,0.30108239]
[1748980918304,1.00703397,664.99,664.27,0.30108239]
[1748980918597,1.12270554,665.12,664.27,0.30108239]
[1748980918598,1.00703397,664.98,664.27,0.30108239]
[1748980918796,1.00703397,664.97,664.27,0.30108239]
[1748980918996,1.00703397,664.96,664.27,0.30108239]
[1748980919198,1.49834309,665.25,664.27,0.30108239]
[1748980919199,1.00703397,664.95,664.27,0.30108239]
[1748980919398,1.00653373,664.94,664.27,0.30108239]
[1748980919602,1.00653373,664.93,664.27,0.30108239]
[1748980919796,1.00653373,664.92,664.27,0.30108239]
[1748980920001,1.00653373,664.91,664.27,0.30108239]
[1748980920202,1.00653373,664.9,664.27,0.30108239]
[1748980920404,1.12206445,665.13,664.27,0.30108239]
[1748980920605,1.00716577,665.12,664.27,0.30108239]
[1748980920904,1.00716577,665.11,664.27,0.30108239]
[1748980921098,1.00716577,665.1,664.27,0.30108239]
[1748980921299,1.00716577,665.09,664.27,0.30108239]
[1748980921499,1.00722101,665.08,664.27,0.30108239]
[1748980921699,1.00722101,665.07,664.27,0.30108239]
[1748980921903,1.49834309,665.26,664.27,0.30108239]
[1748980922206,1.12203677,665.14,664.27,0.30108239]
[1748980922398,2.1292275,665.13,664.3,0.4763792]
[1748980922596,2.1292275,665.13,664.27,0.30108239]
[1748980922597,1.00719073,665.12,664.32,0.30105973]
[1748980922797,1.12203677,665.13,664.32,0.30105973]
[1748980922798,1.00719073,665.11,664.32,0.30105973]
[1748980923003,1.00719073,665.1,664.32,0.30105973]
[1748980923303,1.00719073,665.09,664.32,0.30105973]
[1748980923502,1.00719073,665.08,664.32,0.30105973]
[1748980923703,1.00719073,665.07,664.32,0.30105973]
[1748980923901,1.00719073,665.06,664.32,0.30105973]
[1748980924099,1.00719073,665.05,664.32,0.30105973]
[1748980924298,1.00719073,665.04,664.32,0.30105973]
[1748980924500,1.00719073,665.03,664.32,0.30105973]
[1748980924703,1.00719073,665.02,664.32,0.30105973]
[1748980924902,1.00719073,665.01,664.32,0.30105973]
[1748980925102,1.00719073,665.0,664.32,0.30105973]
[1748980925302,1.00719073,664.99,664.32,0.30105973]
[1748980925502,1.00719073,664.98,664.32,0.30105973]
[1748980925704,1.00794411,664.97,664.32,0.30105973]
[1748980925899,1.00794411,664.96,664.32,0.30105973]
[1748980926098,1.00794411,664.95,664.32,0.30105973]
[1748980926298,1.00794411,664.94,664.32,0.30105973]
[1748980926499,1.00794411,664.93,664.32,0.30105973]
[1748980926697,1.00616043,664.92,664.32,0.30105973]
[1748980926901,3.74585774,665.92,664.32,0.30105973]
[1748980926902,1.00616043,664.91,664.32,0.30105973]
[1748980927105,1.00616043,664.9,664.32,0.30105973]
[1748980927303,1.00616043,664.89,664.32,0.30105973]
[1748980927505,1.12119776,665.1,664.32,0.30105973]
[1748980927506,1.00616043,664.88,664.32,0.30105973]
[1748980927703,1.00616043,664.87,664.32,0.30105973]
[1748980927900,1.00616043,664.86,664.32,0.30105973]
[1748980928097,1.12119776,665.1,664.32,0.30105973]
[1748980928298,1.00617264,665.09,664.32,0.30105973]
[1748980928502,1.00617264,665.08,664.32,0.30105973]
[1748980928705,1.00617264,665.07,664.32,0.30105973]
[1748980929003,1.00617264,665.06,664.32,0.30105973]
[1748980929205,1.00617264,665.05,664.32,0.30105973]
[1748980929403,1.49834309,665.23,664.32,0.30105973]
[1748980929600,1.12078015,665.1,664.32,0.30105973]
[1748980929800,1.00605411,665.09,664.32,0.30105973]
[1748980929999,1.00605411,665.08,664.32,0.30105973]
[1748980930198,1.00605411,665.07,664.32,0.30105973]
[1748980930403,1.00605411,665.06,664.32,0.30105973]
[1748980930604,1.00605411,665.05,664.32,0.30105973]
[1748980930905,1.12078015,665.1,664.32,0.30105973]
[1748980930906,1.00605411,665.04,664.32,0.30105973]
[1748980931107,1.00605411,665.03,664.32,0.30105973]
[1748980931303,1.00605411,665.02,664.32,0.30105973]
[1748980931505,1.00605411,665.01,664.32,0.30105973]
[1748980931707,3.74585774,665.9,664.32,0.30105973]
[1748980931708,1.00605411,665.0,664.32,0.30105973]
[1748980932007,1.00605411,664.99,664.32,0.30105973]
[1748980932199,1.00605411,664.98,664.32,0.30105973]
[1748980932408,1.00605411,664.97,664.32,0.30105973]
[1748980932702,3.74585774,665.89,664.32,0.30105973]
[1748980932703,1.00605411,664.96,664.32,0.30105973]
[1748980932900,1.00605411,664.95,664.32,0.30105973]
[1748980933100,1.00605411,664.94,664.32,0.30105973]
[1748980933301,1.00481745,664.93,664.32,0.30105973]
[1748980933504,1.00481745,664.92,664.32,0.30105973]
[1748980933701,1.00481745,664.91,664.32,0.30105973]
[1748980933902,1.00481745,664.9,664.32,0.30105973]
[1748980934102,1.00481745,664.89,664.32,0.30105973]
[1748980934307,1.00481745,664.88,664.32,0.30105973]
[1748980934507,1.00481745,664.87,664.32,0.30105973]
[1748980934708,1.00481745,664.86,664.32,0.30105973]
[1748980934908,1.00481745,664.85,664.32,0.30105973]
[1748980935108,1.00481745,664.84,664.32,0.30105973]
[1748980935309,1.12068626,665.08,664.32,0.30105973]
[1748980935508,1.00474497,665.07,664.32,0.30105973]
[1748980935704,1.00474497,665.06,664.32,0.30105973]
[1748980936010,1.00474497,665.05,664.32,0.30105973]
[1748980936205,1.00474497,665.04,664.32,0.30105973]
[1748980936409,1.00474497,665.03,664.32,0.30105973]
[1748980936608,1.00474497,665.02,664.32,0.30105973]
[1748980936804,1.00474497,665.01,664.32,0.30105973]
[1748980937007,1.00474497,665.0,664.32,0.30105973]
[1748980937206,1.00427629,664.99,664.32,0.30105973]
[1748980937413,1.00427629,664.98,664.32,0.30105973]
[1748980937610,1.00427629,664.97,664.32,0.30105973]
[1748980937811,1.00427629,664.96,664.32,0.30105973]
[1748980938008,1.00427629,664.95,664.32,0.30105973]
[1748980938208,1.00427629,664.94,664.32,0.30105973]
[1748980938406,1.00427629,664.93,664.32,0.30105973]
[1748980938606,1.00427629,664.92,664.32,0.30105973]
[1748980938810,1.00427629,664.91,664.32,0.30105973]
[1748980939006,1.00427629,664.9,664.32,0.30105973]
[1748980939213,1.00427629,664.89,664.32,0.30105973]
[1748980939411,1.00427629,664.88,664.32,0.30105973]
[1748980939605,1.12078134,665.07,664.32,0.30105973]
[1748980939606,1.00427629,664.87,664.32,0.30105973]
[1748980939806,1.00427629,664.86,664.32,0.30105973]
[1748980940005,1.00427629,664.85,664.32,0.30105973]
[1748980940210,1.00427629,664.84,664.32,0.30105973]
[1748980940407,1.12078134,665.07,664.32,0.30105973]
[1748980940613,1.00371879,665.06,664.32,0.30105973]
[1748980940811,1.00378933,665.05,664.32,0.30105973]
[1748980941008,1.12057795,665.07,664.32,0.30105973]
[1748980941009,1.00378933,665.04,664.32,0.30105973]
[1748980941315,1.00378925,665.03,664.32,0.30105973]
[1748980941514,1.00378925,665.02,664.32,0.30105973]
[1748980941815,1.00378925,665.01,664.32,0.30105973]
[1748980942009,1.00378925,665.0,664.32,0.30105973]
[1748980942211,1.00378925,664.99,664.32,0.30105973]
[1748980942413,1.12057786,665.04,664.32,0.30105973]
[1748980942414,1.00378925,664.98,664.32,0.30105973]
[1748980942612,1.00378925,664.97,664.34,0.4763792]
[1748980942814,1.00378925,664.96,664.35,0.30104613]
[1748980943114,1.49834309,665.15,664.35,0.30104613]
[1748980943314,2.24751464,665.27,664.35,0.30104613]
[1748980943509,3.74585774,665.79,664.35,0.30104613]
[1748980944415,3.74585774,665.78,664.35,0.30104613]
[1748980944916,1.49418142,665.13,664.35,0.30104613]
[1748980945509,1.12063606,665.0,664.35,0.30104613]
[1748980946008,2.24127213,665.26,664.35,0.30104613]
[1748980950510,1.12115278,664.87,664.35,0.30104613]
[1748980950715,1.00431422,664.86,664.35,0.30104613]
[1748980950914,1.00431422,664.85,664.35,0.30104613]
[1748980951108,1.00431422,664.84,664.35,0.30104613]
[1748980951308,1.00431422,664.83,664.35,0.30104613]
[1748980951508,1.00431422,664.82,664.35,0.30104613]
[1748980951710,1.00431422,664.81,664.35,0.30104613]
[1748980952015,1.00431422,664.8,664.35,0.30104613]
[1748980952216,1.00431422,664.79,664.35,0.30104613]
[1748980952516,1.00431422,664.78,664.35,0.30104613]
[1748980952716,1.00431422,664.77,664.35,0.30104613]
[1748980952917,1.00431422,664.76,664.35,0.30104613]
[1748980953216,1.49487037,665.0,664.35,0.30104613]
[1748980953416,1.12101379,664.86,664.35,0.30104613]
[1748980953615,1.00416862,664.85,664.35,0.30104613]
[1748980953810,1.00416862,664.84,664.35,0.30104613]
[1748980954015,1.00416862,664.83,664.35,0.30104613]
[1748980954212,1.00416862,664.82,664.35,0.30104613]
[1748980954417,1.00416862,664.81,664.35,0.30104613]
[1748980954620,1.00416862,664.8,664.35,0.30104613]
[1748980954812,1.00416862,664.79,664.35,0.30104613]
[1748980955014,1.00416862,664.78,664.35,0.30104613]
[1748980955319,1.00416862,664.77,664.35,0.30104613]
[1748980955514,1.00416862,664.76,664.35,0.30104613]
[1748980955820,1.00416862,664.75,664.35,0.30104613]
[1748980956118,1.00416862,664.74,664.35,0.30104613]
[1748980956319,1.00416862,664.73,664.35,0.30104613]
[1748980956516,1.00416862,664.72,664.35,0.30104613]
[1748980956716,1.00416862,664.71,664.35,0.30104613]
[1748980956913,1.12101379,664.87,664.35,0.30104613]
[1748980956914,1.00416862,664.7,664.35,0.30104613]
[1748980957113,1.00416862,664.69,664.35,0.30104613]
[1748980957318,1.00416862,664.68,664.35,0.30104613]
[1748980957521,1.00416862,664.67,664.35,0.30104613]
[1748980957719,1.00416862,664.66,664.35,0.30104613]
[1748980957919,1.00416862,664.65,664.35,0.30104613]
[1748980958214,1.00416862,664.64,664.35,0.30104613]
[1748980958421,1.00416862,664.63,664.35,0.30104613]
[1748980958617,1.00416862,664.62,664.35,0.30104613]
[1748980958821,1.12101379,664.86,664.35,0.30104613]
[1748980959025,2.1249216,664.85,664.35,0.30104613]
[1748980959221,1.00390781,664.84,664.35,0.30104613]
[1748980959421,1.00390781,664.83,664.35,0.30104613]
[1748980959620,1.00390781,664.82,664.35,0.30104613]
[1748980959824,1.00390781,664.81,664.35,0.30104613]
[1748980960024,1.00390781,664.8,664.35,0.30104613]
[1748980960323,1.00390781,664.79,664.35,0.30104613]
[1748980960518,1.00390781,664.78,664.35,0.30104613]
[1748980960722,1.00390781,664.77,664.35,0.30104613]
[1748980960920,1.00390781,664.76,664.35,0.30104613]
[1748980961121,1.00390781,664.75,664.35,0.30104613]
[1748980961319,1.00390781,664.74,664.35,0.30104613]
[1748980961623,1.00390781,664.73,664.35,0.30104613]
[1748980961823,1.00390781,664.72,664.35,0.30104613]
[1748980962023,1.00390781,664.71,664.35,0.30104613]
[1748980962223,1.00390781,664.7,664.35,0.30104613]
[1748980962525,1.00390781,664.69,664.35,0.30104613]
[1748980962716,1.00390781,664.68,664.35,0.30104613]
[1748980962921,1.00390781,664.67,664.35,0.30104613]
[1748980963121,1.00390781,664.66,664.35,0.30104613]
[1748980963422,1.00390781,664.65,664.35,0.30104613]
[1748980963621,1.00390781,664.64,664.35,0.30104613]
[1748980963817,1.00390781,664.63,664.35,0.30104613]
[1748980964022,1.00390781,664.62,664.35,0.30104613]
[1748980964217,1.00390781,664.61,664.35,0.30104613]
[1748980964422,1.00390781,664.6,664.35,0.30104613]
[1748980964619,1.00390781,664.59,664.35,0.30104613]
[1748980964819,1.12101379,664.84,664.35,0.30104613]
[1748980965124,1.00355045,664.83,664.35,0.30104613]
[1748980965327,1.00355045,664.82,664.35,0.30104613]
[1748980965620,1.00355045,664.81,664.35,0.30104613]
[1748980965822,1.00355045,664.8,664.35,0.30104613]
[1748980966123,1.12032633,664.84,664.35,0.30104613]
[1748980966124,1.00355045,664.79,664.35,0.30104613]
[1748980966325,1.00355045,664.78,664.35,0.30104613]
[1748980966519,1.00355045,664.77,664.35,0.30104613]
[1748980966825,1.00355045,664.76,664.35,0.30104613]
[1748980967120,1.12032633,664.82,664.35,0.30104613]
[1748980967121,1.00355045,664.75,664.35,0.30104613]
[1748980967424,1.00355045,664.74,664.35,0.30104613]
[1748980967624,1.00355045,664.73,664.35,0.30104613]
[1748980967925,1.00355045,664.72,664.35,0.30104613]
[1748980968122,1.00355045,664.71,664.35,0.30104613]
[1748980968319,1.00355045,664.7,664.35,0.30104613]
[1748980968521,1.00355045,664.69,664.35,0.30104613]
[1748980968725,1.12032633,664.82,664.35,0.30104613]
[1748980968726,1.00355045,664.68,664.35,0.30104613]
[1748980968925,1.0046829,664.67,664.35,0.30104613]
[1748980969221,1.0046829,664.66,664.35,0.30104613]
[1748980969422,1.0046829,664.65,664.35,0.30104613]
[1748980969622,1.0046829,664.64,664.35,0.30104613]
[1748980969821,1.0046829,664.63,664.35,0.30104613]
[1748980970024,1.0046829,664.62,664.35,0.30104613]
[1748980970222,1.11993026,664.86,664.35,0.30104613]
[1748980970427,1.00460544,664.85,664.35,0.30104613]
[1748980970629,1.00460544,664.84,664.35,0.30104613]
[1748980970822,1.00460544,664.83,664.35,0.30104613]
[1748980971022,1.00460544,664.82,664.35,0.30104613]
[1748980971225,1.00460544,664.81,664.35,0.30104613]
[1748980971427,1.00460544,664.8,664.35,0.30104613]
[1748980971622,1.00460544,664.79,664.35,0.30104613]
[1748980971823,1.00460544,664.78,664.35,0.30104613]
[1748980972023,1.00460544,664.77,664.35,0.30104613]
[1748980972231,1.11993026,664.87,664.35,0.30104613]
[1748980972232,1.00460544,664.76,664.35,0.30104613]
[1748980972529,1.00460544,664.75,664.35,0.30104613]
[1748980972730,1.00460544,664.74,664.35,0.30104613]
[1748980972927,1.00123683,664.73,664.35,0.30104613]
[1748980973230,1.11969664,664.87,664.35,0.30104613]
[1748980973231,1.00123683,664.72,664.35,0.30104613]
[1748980973429,1.00123683,664.71,664.35,0.30104613]
[1748980973627,1.00123683,664.7,664.35,0.30104613]
[1748980973822,1.00123683,664.69,664.35,0.30104613]
[1748980974027,1.00123683,664.68,664.35,0.30104613]
[1748980974225,1.00123683,664.67,664.35,0.30104613]
[1748980974524,1.00123683,664.66,664.35,0.30104613]
[1748980974730,1.11969664,664.87,664.35,0.30104613]
[1748980974931,1.00124593,664.86,664.35,0.30104613]
[1748980975228,1.00124593,664.85,664.35,0.30104613]
[1748980975431,1.00124593,664.84,664.35,0.30104613]
[1748980975734,1.00124593,664.83,664.35,0.30104613]
[1748980975928,1.00124593,664.82,664.35,0.30104613]
[1748980976128,1.00124593,664.81,664.35,0.30104613]
[1748980976332,1.00124593,664.8,664.35,0.30104613]
[1748980976630,1.00124593,664.79,664.35,0.30104613]
[1748980976830,1.00424449,664.78,664.35,0.30104613]
[1748980977032,1.00424449,664.77,664.35,0.30104613]
[1748980977234,1.00424449,664.76,664.35,0.30104613]
[1748980977434,1.00424449,664.75,664.35,0.30104613]
[1748980977734,1.11973404,664.86,664.35,0.30104613]
[1748980977735,1.00424449,664.74,664.35,0.30104613]
[1748980977929,1.00424449,664.73,664.35,0.30104613]
[1748980978132,1.00424449,664.72,664.35,0.30104613]
[1748980978433,1.00424449,664.71,664.35,0.30104613]
[1748980978632,1.00424449,664.7,664.35,0.30104613]
[1748980978827,1.00424449,664.69,664.35,0.30104613]
[1748980979031,1.00424449,664.68,664.35,0.30104613]
[1748980979228,1.00424449,664.67,664.35,0.30104613]
[1748980979435,1.00424449,664.66,664.35,0.30104613]
[1748980979629,1.11973404,664.86,664.35,0.30104613]
[1748980979832,1.00442922,664.85,664.35,0.30104613]
[1748980980031,1.00442922,664.84,664.35,0.30104613]
[1748980980327,1.00442922,664.83,664.35,0.30104613]
[1748980980529,1.49487037,664.96,664.35,0.30104613]
[1748980980731,1.11993963,664.85,664.35,0.30104613]
[1748980980932,1.00430342,664.84,664.35,0.30104613]
[1748980981129,1.00430342,664.83,664.35,0.30104613]
[1748980981329,1.00430342,664.82,664.35,0.30104613]
[1748980981534,1.00430342,664.81,664.35,0.30104613]
[1748980981734,1.00430342,664.8,664.35,0.30104613]
[1748980981934,1.00430342,664.79,664.35,0.30104613]
[1748980982132,1.00430342,664.78,664.35,0.30104613]
[1748980982336,1.11993963,664.85,664.35,0.30104613]
[1748980982337,1.00430342,664.77,664.35,0.30104613]
[1748980982537,1.00430342,664.76,664.35,0.30104613]
[1748980982738,1.00430342,664.75,664.35,0.30104613]
[1748980982934,1.00430342,664.74,664.35,0.30104613]
[1748980983140,1.00430342,664.73,664.35,0.30104613]
[1748980983342,1.00457873,664.72,664.35,0.30104613]
[1748980983637,2.24127213,665.26,664.35,0.30104613]
[1748980983638,1.00457873,664.71,664.35,0.30104613]
[1748980983841,1.00457873,664.7,664.35,0.30104613]
[1748980984041,1.00457873,664.69,664.35,0.30104613]
[1748980984241,1.12024691,664.8,664.35,0.30104613]
[1748980984242,1.00457873,664.68,664.35,0.30104613]
[1748980984443,1.00457873,664.67,664.35,0.30104613]
[1748980984744,1.00457873,664.66,664.35,0.30104613]
[1748980984943,1.00457873,664.65,664.35,0.30104613]
[1748980985139,1.00457873,664.64,664.35,0.30104613]
[1748980985346,1.00457873,664.63,664.35,0.30104613]
[1748980985549,1.00457873,664.62,664.35,0.30104613]
[1748980985748,1.00457873,664.61,664.35,0.30104613]
[1748980985943,1.00457873,664.6,664.35,0.30104613]
[1748980986247,1.00457873,664.59,664.35,0.30104613]
[1748980986448,1.00457873,664.58,664.35,0.30104613]
[1748980986647,1.00457873,664.57,664.35,0.30104613]
[1748980986948,1.00457873,664.56,664.35,0.30104613]
[1748980987145,1.00472742,664.55,664.35,0.30104613]
[1748980987451,1.00472742,664.54,664.35,0.30104613]
[1748980987748,1.00472742,664.53,664.35,0.30104613]
[1748980987950,1.12079317,664.73,664.35,0.30104613]
[1748980988149,1.00477668,664.72,664.35,0.30104613]
[1748980988344,1.00477668,664.71,664.35,0.30104613]
[1748980988547,1.00477668,664.7,664.35,0.30104613]
[1748980988743,1.12079317,664.71,664.35,0.30104613]
[1748980988744,1.00477668,664.69,664.35,0.30104613]
[1748980988948,1.00477668,664.68,664.35,0.30104613]
[1748980989149,1.00477668,664.67,664.35,0.30104613]
[1748980989345,1.00477668,664.66,664.35,0.30104613]
[1748980989544,1.00477668,664.65,664.35,0.30104613]
[1748980989749,1.00477668,664.64,664.35,0.30104613]
[1748980989949,1.00477668,664.63,664.35,0.30104613]
[1748980990245,1.49487037,664.8,664.35,0.30104613]
[1748980990549,1.120779,664.68,664.35,0.30104613]
[1748980990749,1.00474969,664.67,664.35,0.30104613]
[1748980990951,1.00467724,664.66,664.35,0.30104613]
[1748980991143,1.00467724,664.65,664.35,0.30104613]
[1748980991344,1.00467724,664.64,664.35,0.30104613]
[1748980991544,1.00467724,664.63,664.35,0.30104613]
[1748980991748,1.00467724,664.62,664.35,0.30104613]
[1748980991948,1.00467724,664.61,664.35,0.30104613]
[1748980992148,1.00467724,664.6,664.35,0.30104613]
[1748980992345,1.00467724,664.59,664.35,0.30104613]
[1748980992548,1.00467724,664.58,664.35,0.30104613]
[1748980992749,1.12075906,664.67,664.35,0.30104613]
[1748980992750,1.00467724,664.57,664.35,0.30104613]
[1748980992948,2.24127213,665.26,664.35,0.30104613]
[1748980992949,1.00467724,664.56,664.35,0.30104613]
[1748980993149,1.00467724,664.55,664.35,0.30104613]
[1748980993351,1.00467724,664.54,664.35,0.30104613]
[1748980993550,1.00467724,664.53,664.35,0.30104613]
[1748980993850,1.00467724,664.52,664.35,0.30104613]
[1748980994148,1.00467724,664.51,664.35,0.30104613]
[1748980994350,1.00467724,664.5,664.35,0.30104613]
[1748980994548,1.00467724,664.49,664.35,0.30104613]
[1748980994745,1.49487037,664.72,664.35,0.30104613]
[1748980994945,1.12041544,664.61,664.35,0.30104613]
[1748980995145,1.00278356,664.6,664.35,0.30104613]
[1748980995345,1.00278356,664.59,664.35,0.30104613]
[1748980995551,1.00278356,664.58,664.35,0.30104613]
[1748980995849,1.00278356,664.57,664.35,0.30104613]
[1748980996050,1.00278356,664.56,664.35,0.30104613]
[1748980996253,1.00278356,664.55,664.35,0.30104613]
[1748980996446,1.00278356,664.54,664.35,0.30104613]
[1748980996650,1.00278356,664.53,664.35,0.30104613]
[1748980996945,1.12041544,664.6,664.35,0.30104613]
[1748980996946,1.00278356,664.52,664.35,0.30104613]
[1748980997150,1.00278356,664.51,664.35,0.30104613]
[1748980997347,1.12041544,664.6,664.35,0.30104613]
[1748980997348,1.00278356,664.5,664.35,0.30104613]
[1748980997547,2.24127213,665.26,664.35,0.30104613]
[1748980997548,1.00278356,664.49,664.35,0.30104613]
[1748980997751,1.00278356,664.48,664.35,0.30104613]
[1748980997951,1.00278356,664.47,664.35,0.30104613]
[1748980998252,1.00278356,664.46,664.35,0.30104613]
[1748980998452,1.00278356,664.45,664.35,0.30104613]
[1748980998753,1.0024723,664.44,664.35,0.30104613]
[1748980998953,1.0024723,664.43,664.35,0.30104613]
[1748980999149,1.0024723,664.42,664.35,0.30104613]
[1748980999350,1.0024723,664.41,664.35,0.30104613]
[1748980999554,1.0024723,664.4,664.35,0.30104613]
[1748980999755,1.0024723,664.39,664.35,0.30104613]
[1748980999950,1.0024723,664.38,664.35,0.30104613]
[1748981000154,1.0024723,664.37,664.35,0.30104613]
[1748981000351,1.0024723,664.36,664.35,0.30104613]
[1748981002758,1.00328833,664.36,664.35,0.30104613]
[1748981006657,1.00262748,664.36,664.35,0.30104613]
[1748981007362,1.49487037,664.81,664.35,0.30104613]
[1748981007664,1.11946705,664.64,664.35,0.30104613]
[1748981007858,2.12210745,664.63,664.35,0.30104613]
[1748981008062,1.0026404,664.62,664.35,0.30104613]
[1748981008262,1.0026404,664.61,664.35,0.30104613]
[1748981008562,1.0026404,664.6,664.35,0.30104613]
[1748981008762,1.0026404,664.59,664.35,0.30104613]
[1748981008961,1.0026404,664.58,664.35,0.30104613]
[1748981009165,1.0026404,664.57,664.35,0.30104613]
[1748981009363,2.24127213,665.26,664.35,0.30104613]
[1748981009364,1.0026404,664.56,664.35,0.30104613]
[1748981009663,1.0026404,664.55,664.35,0.30104613]
[1748981009863,1.0026404,664.54,664.35,0.30104613]
[1748981010163,1.0026404,664.53,664.35,0.30104613]
[1748981010364,1.0026404,664.52,664.35,0.30104613]
[1748981010562,1.0026404,664.51,664.35,0.30104613]
[1748981010759,1.11946705,664.61,664.35,0.30104613]
[1748981010760,1.00171076,664.5,664.35,0.30104613]
[1748981010963,1.00171076,664.49,664.35,0.30104613]
[1748981011264,1.00171076,664.48,664.35,0.30104613]
[1748981011563,1.11901361,664.61,664.35,0.30104613]
[1748981011564,1.00171076,664.47,664.35,0.30104613]
[1748981011764,1.00171076,664.46,664.35,0.30104613]
[1748981011961,1.00171076,664.45,664.35,0.30104613]
[1748981012158,1.00171076,664.44,664.35,0.30104613]
[1748981012356,1.00171076,664.43,664.35,0.30104613]
[1748981012557,1.00171076,664.42,664.35,0.30104613]
[1748981012759,1.00171076,664.41,664.35,0.30104613]
[1748981012958,1.00171076,664.4,664.35,0.30104613]
[1748981013161,1.00171076,664.39,664.35,0.30104613]
[1748981013361,1.11901361,664.61,664.35,0.30104613]
[1748981013362,1.00171076,664.38,664.35,0.30104613]
[1748981013560,1.00171076,664.37,664.35,0.30104613]
[1748981013758,1.00171076,664.36,664.35,0.30104613]
[1748981014663,1.00112152,664.36,664.35,0.30104613]
[1748981018563,1.00096367,664.36,664.35,0.30104613]
[1748981026370,1.49487037,664.69,664.35,0.30104613]
[1748981026566,1.11813602,664.56,664.35,0.30104613]
[1748981026768,1.00087152,664.55,664.35,0.30104613]
[1748981026966,1.00087152,664.54,664.35,0.30104613]
[1748981027169,1.00087152,664.53,664.35,0.30104613]
[1748981027369,1.00087152,664.52,664.35,0.30104613]
[1748981027568,1.00087152,664.51,664.35,0.30104613]
[1748981027766,1.00087152,664.5,664.35,0.30104613]
[1748981027969,1.00087152,664.49,664.35,0.30104613]
[1748981028166,1.00087152,664.48,664.35,0.30104613]
[1748981028472,1.00087152,664.47,664.35,0.30104613]
[1748981028673,1.00087152,664.46,664.35,0.30104613]
[1748981028872,1.00087152,664.45,664.35,0.30104613]
[1748981029171,1.00087152,664.44,664.35,0.30104613]
[1748981029371,1.00087152,664.43,664.35,0.30104613]
[1748981029566,1.00087152,664.42,664.35,0.30104613]
[1748981029773,1.00087152,664.41,664.35,0.30104613]
[1748981029969,1.00087152,664.4,664.35,0.30104613]
[1748981030168,1.00087152,664.39,664.35,0.30104613]
[1748981030366,1.49487037,664.75,664.35,0.30104613]
[1748981030576,1.11751806,664.53,664.35,0.30104613]
[1748981030868,1.00030261,664.52,664.35,0.30104613]
[1748981031071,1.00030261,664.51,664.35,0.30104613]
[1748981031268,1.00030261,664.5,664.35,0.30104613]
[1748981031469,1.00030261,664.49,664.35,0.30104613]
[1748981031770,1.00030261,664.48,664.35,0.30104613]
[1748981032072,1.00030261,664.47,663.72,0.26201958]
[1748981032271,1.00030261,664.46,663.73,0.30132734]
[1748981032472,1.00030261,664.45,663.73,0.30132734]